Cogmind - Beta 10.2 @@@ ROGUE MODE // 2021.04.08 @ 23:01:12 Player: haldagan Result: Destroyed by as-89938 with Assembled Maul Performance ------------- Evolutions (0) 0 Regions Visited (0) 0 Robots Destroyed (0) 0 Value Destroyed (0) 0 Prototype IDs (0) 0 Alien Tech Used (0) 0 Bonus (0) 0 TOTAL SCORE: 0 Bonus ------- None Cogmind --------- Core Integrity 0/250 Matter 277/300 Energy 166/250 System Corruption 4% Temperature Cool (0) Movement Treading (160) Location -11/Scrapyard Parts ------- > --- POWER (1) -------- Ion Engine > --- PROPULSION (2) --- Light Treads Light Treads > --- UTILITY (2) ------ (None) > --- WEAPON (2) ------- (None) > --- INVENTORY (4) ---- Aluminum Leg Aluminum Leg Peak State ------------ > --- POWER ------------ Ion Engine > --- PROPULSION ------- Light Treads Light Treads > --- UTILITY ---------- Small Storage Unit > --- WEAPON ----------- Small Laser Small Laser > --- INVENTORY -------- Ion Engine Aluminum Leg Aluminum Leg Light Assault Rifle [Rating: 6] Favorites ----------- Power Ion Engine Engine Ion Engine Propulsion Light Treads Treads Light Treads Utility Small Storage Unit Storage Small Storage Unit Weapon Small Laser Energy Gun Small Laser Ballistic Gun Light Assault Rifle Build | -11 ------- Run | Scr Slots Evolved . | . Power . | . Propulsion . | . Utility . | . Weapon . | . Parts Attached 8 | 8 Power 2 | 2 Engine 2 | 2 Core . | . Reactor . | . Propulsion 2 | 2 Treads 2 | 2 Leg . | . Wheel . | . Hover . | . Flight . | . Utility 1 | 1 Device . | . Storage 1 | 1 Processor . | . Hackware . | . Protection . | . Artifact . | . Weapon 3 | 3 Energy Gun 2 | 2 Energy Cannon . | . Ballistic Gun 1 | 1 Ballistic Cannon . | . Launcher . | . Special Weapon . | . Impact Weapon . | . Slashing Weapon . | . Piercing Weapon . | . Special Melee Weapon . | . Unidentified Prototypes . | . Parts Lost 5 | 5 Power 1 | 1 Propulsion . | . Utility 1 | 1 Weapon 3 | 3 Highest Loss Streak 5 | 5 Average Slot Usage (%) . | . Naked Turns . | . Heaviest Build 11 | 11 Greatest Support 40 | 40 Greatest Overweight (x) . | . Average Overweight (x) . | . Largest Inventory Capacity 6 | 6 Average Capacity 5 | 5 Most Carried 6 | 6 Average Carried 3 | 3 Final Capacity 4 | 4 Final Carried 2 | 2 Class Distribution -------------------- None Dominant Class ---------------- None Resources | -11 ----------- Run | Scr Matter Collected 221 | 221 Remotely . | . Salvage Created . | . Parts . | . Haulers Intercepted . | . Recyclers Shooed . | . Parts Field Recycled . | . Retrieved Matter . | . Parts Self-Destructed . | . Prevented . | . Kills | -11 ------- Run | Scr Combat Hostiles Destroyed 1 | 1 Melee 1 | 1 Classes Destroyed 1 | 1 Assembled 1 | 1 Best Kill Streak 1 | 1 Combat Bots Only 1 | 1 Max Kills in Single Turn 1 | 1 Gunslinging . | . Exploded . | . Melee 1 | 1 Uniques/NPCs Destroyed . | . Combat | -11 -------- Run | Scr Damage Taken 917 | 917 Core 274 | 274 Absorbed by Shields . | . Core Remaining (%) . | . Volleys Fired 20 | 20 Largest 2 | 2 Hottest 80 | 80 Shots Fired 38 | 38 Gun 38 | 38 Cannon . | . Launcher . | . Special . | . Kinetic 2 | 2 Thermal 36 | 36 Explosive . | . Electromagnetic . | . Robot Hit Streak 4 | 4 Robot Miss Streak 2 | 2 Penetration Max . | . Secondary Targets . | . Shots Hit Robots 5 | 5 Core Hits 3 | 3 Critical Hits . | . Critical Kills . | . Critical Parts Destroyed . | . Melee Attacks . | . Impact . | . Slashing . | . Piercing . | . Sneak Attacks . | . Combat Hostiles . | . Follow-up Attacks . | . Damage Inflicted 47 | 47 Guns 45 | 45 Cannons . | . Explosions . | . Melee . | . Ramming 2 | 2 Kinetic . | . Thermal 45 | 45 Explosive . | . Electromagnetic . | . Impact . | . Slashing . | . Piercing . | . Highest Corruption 4 | 4 Average Corruption 4 | 4 Corruption Purged . | . Overload Shots . | . Overflow Damage . | . Projectiles . | . Explosions . | . Melee . | . Knockbacks . | . Impact . | . Kinetic . | . Secondary . | . Self-Inflicted Damage . | . Shots . | . Rammed 4 | 4 Targets Rammed 5 | 5 Kicked . | . Crushed 1 | 1 Highest Temperature 252 | 252 Average Temperature 114 | 114 Received Heat Transfer 140 | 140 Effects 1 | 1 Interference 1 | 1 Siege Activations . | . Robots Corrupted . | . Combat Hostiles . | . Parts Fried . | . Impact Corruptions . | . Robots Melted . | . Combat Hostiles . | . Parts Melted . | . Heat Transferred 100 | 100 Parts Sabotaged . | . Parts Stolen . | . Parts Stripped . | . Power Chain Reactions . | . Missiles Intercepted . | . Alert | -11 ------- Run | Scr Peak Influence . | . Initial . | . Average . | . Maximum Alert Level . | . Low Security (%) 100 | 100 Level 1 . | . Level 2 . | . Level 3 . | . Level 4 . | . Level 5 . | . High Security . | . Max Security . | . Squads Dispatched . | . Investigation . | . Extermination . | . Reinforcement . | . Assault . | . Garrison . | . Intercept . | . Construction Impeded . | . Haulers Reinforced . | . Stealth | -11 --------- Run | Scr Distress Signals . | . Communications Jammed . | . Distress Signals . | . Times Spotted 14 | 14 Peak Tracking Total 19 | 19 Tactical Retreats . | . Traps | -11 ------- Run | Scr Traps Triggered . | . Indirectly . | . Trap Hack Attempts . | . Triggered . | . Disarmed . | . Reprogrammed . | . Reused . | . Traps Extracted . | . Installed . | . Triggered . | . Machines | -11 ---------- Run | Scr Machines Disabled . | . Max in Single Turn . | . Machines Sabotaged . | . Garrisons Compromised . | . Overloaded Fab Kills . | . Fab Network Shutdowns . | . Hacking | -11 --------- Run | Scr Machines Accessed . | . Terminals . | . Fabricators . | . Repair Stations . | . Recycling Units . | . Scanalyzers . | . Garrison Access . | . Total Hacks . | . Successful . | . Failed . | . Catastrophic . | . Database Lockouts . | . Manual . | . Terminals . | . Fabricators . | . Repair Stations . | . Recycling Units . | . Scanalyzers . | . Garrison Access . | . Terminal Hacks . | . Fabricator Hacks . | . Repair Station Hacks . | . Recycling Unit Hacks . | . Scanalyzer . | . Garrison Access Hacks . | . Unauthorized Hacks . | . Terminals . | . Fabricators . | . Repair Stations . | . Recycling Units . | . Scanalyzers . | . Garrison Access . | . Data Cores Recovered . | . Used . | . Hacking Detections . | . Full Trace Events . | . Feedback Events . | . Feedback Blocked . | . Robot Schematics Acquired . | . Robots Built . | . Matter . | . Time . | . Total Robot Build Rating . | . Part Schematics Acquired . | . Parts Built . | . Matter . | . Time . | . Total Part Build Rating . | . Parts Repaired . | . Time . | . Parts Recycled . | . Recycled Matter . | . Retrieved Matter . | . Retrieved Components . | . Parts Scanalyzed . | . Part Schematics Acquired . | . Parts Damaged . | . Bothacking | -11 ------------ Run | Scr Used RIF Installer . | . Robots Hacked . | . Non-combat . | . Combat . | . Robot Hacks Applied . | . Relay Couplers Released . | . Robots Rewired . | . Allies Hacked . | . Hacks Repelled . | . Allies | -11 -------- Run | Scr Total Allies . | . Largest Group . | . Highest-Rated Group . | . Highest-Rated Ally . | . Total Orders . | . Ally Attacks . | . Total Damage . | . Kills . | . Allies Corrupted . | . Allies Melted . | . Intel | -11 ------- Run | Scr Robot Analysis Total . | . Derelict Logs Recovered . | . Drone Launches . | . Drone Recoveries . | . Exploration | -11 ------------- Run | Scr Turns Passed 2442 | 2442 Spaces Moved 638 | 638 Core 5 | 5 Treads 633 | 633 Legs . | . Wheels . | . Hover . | . Flight . | . Fastest Speed 50 | 50 Average Speed 159 | 159 Slowest Speed 160 | 160 Overloaded Moves . | . Propulsion Burnouts . | . Robots Hopped . | . Cave-ins Triggered . | . Exploration Rate (%) 73 | 73 Regions Visited . Branch Regions . Pre-discovered Areas . | . Known Exits Taken . | . Unknown Exits Taken . | . Scrap Searched . | . Spaces Dug . | . Terrain Destroyed . | . Melee . | . Projectile . | . AOE . | . Terrain Rammed . | . Walls Destroyed . | . Machines Disabled . | . Actions | -11 --------- Run | Scr Total 2023 | 2023 Wait 1346 | 1346 Move 638 | 638 Hop . | . Pick Up 6 | 6 Fast Attach 4 | 4 Attach 4 | 4 Detach . | . Swap . | . Drop . | . Fire 20 | 20 Melee . | . Ram . | . Kick . | . Crush 5 | 5 Escape Stasis . | . Rewire . | . Trap . | . Miscellaneous . | . Route ------- -11/Scrapyard (discovered 1 exit: [*Mat]) History --------- Turn | Location | Event 16 | -11/Scrapyard | Discovered new exit (range 16) 2411 | -11/Scrapyard | Assembled infested the area 2437 | -11/Scrapyard | Core integrity fell below 50% 2441 | -11/Scrapyard | Core integrity fell below 20% 2443 | -11/Scrapyard | Destroyed by as-89938 with Assembled Maul Last Messages --------------- 00661_ K-01 Serf collects debris. 01782_ T-07 Excavator is excavating. 01971_ K-01 Serf collects debris. 02218_ T-07 Excavator is excavating. 02299_ Overheating: System interference. 02299_ Sml. Laser temporarily disabled. 02299_ T-07 Excavator is excavating. 02411_ ALERT: Infestation in the scrapyard, dispatching Demolisher response squad. [Achievement: Curiosity Killed The Cat] 02428_ Sml. Laser destroyed. 02430_ Ion Engine destroyed. 02430_ System corrupted by crushing effect (+4). 02433_ Lgt. Assault Rifle destroyed. 02435_ Slammed into as-60965. 02440_ Slammed into as-75796. 02440_ Sml. Storage Unit destroyed. 02441_ Crushed as-75796. 02441_ as-75796 destroyed. 02443_ Slammed into as-23574. Map ----- +----------------------------------------------------+ | | | | | | | | | | | | | | | | | ?????????????????????????????????????????????????? | | ?????????????????????????????????????????????????? | | ?????????????????????????????????????????????????? | | ?????????????????????????????????????????????????? | | ?????????????????????????????????????????????????? | | ?????????????????????????????????????????????????? | | ???????????????????#?????????????????????????????? | | ???????????????????# ????????????????????????????? | | ???????????????????# ????????????????????????????? | | ???????????????????? ???????????????????????????? | | ????????????????????? ???????????????????????????? | | ????????????????????? "??????????????????????????? | | ?????????????????????? ??????????????????????????? | | ??????????????????????#a?????????????????????????? | | ??????????????????????#a?#########???????????????? | | ??????????????????????#aa# a #???????????????? | | ??????????????????????#aa#aa a #???????????????? | | ??????????????????????# a@ a #???????????????? | | ??????????????????????# # a #???????????????? | | ??????????????????????# # #???????????????? | | ?????????????????????## #########???????????????? | | ?????????????????????# ############???????????? | | ?????????????????????# #???????????? | | ?????????????????????# #???????????? | | ?????????????????????# ####### #???????????? | | ?????????????????????######?????## ##???????????? | | ?????????????????????????????????# #????????????? | | ?????????????????????????????????# #########????? | | ?????????????????????????????????# ## #????? | | ?????????????????????????????????# ## #????? | | ????????????????????????????????## ## #????? | | ?????????######################## # #????? | | ?????????# # #????? | | ?????????# ###### | | ????????######### ############## # # | | ????????# #????????????###### # | | ????????# # #?????????????????# # | | ????????# # #?????????????????# # | | ????????######### #?######??????????# ###### | | ?????????######## #? #??????????########??# | | ?????????# # # #?###########????????# | | ?????????# # # #?# #????????# | +----------------------------------------------------+ Best States ------------- Heat Dissipation 25 Energy Generation 10 Energy Capacity 250 Matter Stores 264 Matter Capacity 300 Sight Range 16 Terrain Scan Density 10 Evasion (%) 40 Recoil Reduction 2 Item Schematics ----------------- None Robot Schematics ------------------ None Fabricated ------------ Nothing Alien Tech Used ----------------- None Achievements -------------- Curiosity Killed The Cat Challenges ------------ None Game ------ Seed DroneBombFacilitator Manual? 0 Play Time 00:10:46 Cumulative 7.0 hours Start 2021.04.08 @ 22:55:29 End 2021.04.08 @ 23:01:12 Sessions 0 Manual Loads 0 Difficulty Rogue Special Mode None Game No. 8 Rogue 8 Adventurer 0 Explorer 0 Win Type - Total 0 Types 0/0/0/0/0/0/0/0/0 Lore% 16 Gallery% 13 Achievement% 14 Wizard Run 0 Options --------- ASCII 0 Keyboard 0 Movement Numpad Keybinds 0 Fullscreen 1 Font 16/SmallcapsGlow Map View 50x54 Tactical HUD 1 Map Filters NONE Filters NONE Steam 1 RUN: 1767ddb2-d121-48a6-a997-81f0a51eae53